bitfinex-derivatives/quotes_ETHF0:USTF0_20251031
["timestamp","ask_amount","ask_price","bid_price","bid_amount"]
[1761878314032,0.80502949,3827.1,3827.0,0.56081564]
[1761878314239,7.14602949,3827.1,3827.0,0.77571564]
[1761878314834,0.80502949,3827.1,3827.0,0.91291564]
[1761878315034,10.00202949,3827.1,3827.0,0.91291564]
[1761878315234,10.00202949,3827.1,3827.0,0.77571564]
[1761878316842,0.00292949,3827.1,3827.0,0.91291564]
[1761878317846,0.57102949,3827.1,3827.0,0.91291564]
[1761878318233,0.23912949,3827.1,3827.0,0.91291564]
[1761878318842,0.00292949,3827.1,3827.0,0.91291564]
[1761878319734,0.23912949,3827.1,3827.0,0.91291564]
[1761878320042,0.00292949,3827.1,3827.0,0.91291564]
[1761878320444,0.00292949,3827.1,3827.0,1.38333564]
[1761878321639,0.00292949,3827.1,3827.0,0.91291564]
[1761878322142,0.22432949,3827.1,3827.0,0.91291564]
[1761878322343,0.00292949,3827.1,3827.0,0.91291564]
[1761878323745,0.7805,3828.0,3827.9,0.8184]
[1761878323941,0.7805,3827.7,3827.6,0.8184]
[1761878324342,9.9685,3828.0,3827.9,0.8184]
[1761878324642,10.1034,3828.0,3827.9,0.8184]
[1761878324843,10.10652669,3828.0,3827.9,0.2362]
[1761878325044,10.10652669,3828.0,3827.9,0.5909]
[1761878325634,9.97162669,3828.0,3827.9,0.8184]
[1761878325834,10.10652669,3828.0,3827.9,0.5909]
[1761878326334,0.78362669,3828.0,3827.9,0.8184]
[1761878326642,9.96962669,3828.0,3827.9,0.8184]
[1761878326949,9.41052669,3828.0,3827.9,0.8184]
[1761878328144,9.18912669,3828.0,3827.9,0.8184]
[1761878328849,9.96962669,3828.0,3827.9,0.8184]
[1761878329244,0.7805,3827.7,3827.6,3.7987]
[1761878329751,0.7805,3827.7,3827.6,4.0262]
[1761878329941,0.7805,3827.7,3827.6,44.8262]
[1761878330247,0.7805,3827.7,3827.6,41.6184]
[1761878330750,0.2214,3827.7,3827.6,41.6184]
[1761878330952,9.75002669,3828.0,3827.9,0.8184]
[1761878331150,9.96962669,3828.0,3827.9,0.8184]
[1761878332350,9.63012669,3828.0,3827.9,0.8184]
[1761878333254,9.41052669,3828.0,3827.9,0.8184]
[1761878334056,9.75002669,3828.0,3827.9,0.8184]
[1761878334546,10.10452669,3828.0,3827.6,44.47814]
[1761878334752,0.5609,3827.9,3827.8,0.4637]
[1761878334948,0.7805,3827.9,3827.8,0.4637]
[1761878335142,0.7805,3827.9,3827.8,0.8184]
[1761878338067,9.18912669,3828.0,3827.8,0.8184]
[1761878338250,9.18912669,3828.0,3827.7,0.47032]
[1761878338251,0.56402669,3828.0,3827.9,1.2887]
[1761878338457,0.56402669,3828.0,3827.9,0.8184]
[1761878338751,0.00312669,3828.0,3827.9,1.02233627]
[1761878339151,0.00312669,3828.0,3827.9,0.8184]
[1761878340052,1.06155361,3829.0,3828.6,0.8184]
[1761878340053,0.5609,3828.7,3828.6,0.8184]
[1761878340254,9.9495,3828.7,3828.6,0.8184]
[1761878340858,0.5609,3829.0,3828.9,0.8184]
[1761878341051,0.22466634,3829.0,3828.9,0.8184]
[1761878341251,0.78376634,3829.0,3828.9,0.8184]
[1761878341454,0.13816634,3829.0,3828.9,40.8]
[1761878341746,0.57916634,3829.0,3828.9,40.8]
[1761878341954,0.91866634,3829.0,3828.9,40.8]
[1761878343262,1.50335996,3829.0,3828.9,40.8]
[1761878343759,0.7805,3828.1,3828.0,3.444]
[1761878344159,0.7805,3828.1,3828.0,44.4715]
[1761878344466,0.7805,3828.1,3828.0,44.8262]
[1761878344862,0.7805,3828.1,3828.0,4.0262]
[1761878345062,0.2214,3827.7,3827.6,4.0262]
[1761878345369,0.7805,3827.7,3827.6,44.8262]
[1761878345757,0.441,3827.7,3827.6,44.8262]
[1761878345953,0.7805,3827.7,3827.6,44.8262]
[1761878346359,0.7805,3827.7,3827.6,44.4715]
[1761878346560,0.7805,3827.7,3827.6,44.244]
[1761878347868,0.7805,3827.7,3827.6,44.0078]
[1761878348460,0.7805,3827.7,3827.6,3.2078]
[1761878348664,0.7805,3827.4,3827.3,0.8184]
[1761878348971,9.9545,3827.4,3827.3,41.6184]
[1761878349267,0.7805,3827.2,3827.1,3.2078]
[1761878349864,0.7805,3827.1,3827.0,40.80221564]
[1761878350258,0.7805,3827.1,3827.0,0.00221564]
[1761878350567,0.7805,3827.1,3827.0,0.96011564]
[1761878350766,0.7805,3827.1,3827.0,0.00221564]
[1761878350971,7.6875,3827.1,3827.0,0.00221564]
[1761878351164,8.27219461,3827.1,3827.0,0.00221564]
[1761878352270,0.4418,3826.0,3825.9,0.3463]
[1761878352469,0.7713,3825.9,3825.8,0.4549]
[1761878353087,0.7713,3825.9,3825.8,0.8012]
[1761878353263,0.5464,3826.5,3826.4,0.4549]
[1761878353566,0.00206988,3826.5,3826.4,0.4549]
[1761878353867,9.41396988,3826.5,3826.4,0.8012]
[1761878354560,9.19706988,3826.5,3826.4,0.8012]
[1761878354873,9.19706988,3826.5,3826.4,41.6012]
[1761878355071,0.00206988,3826.5,3826.4,41.6012]
[1761878356663,0.7956,3827.4,3827.3,0.5522]
[1761878356859,8.6196,3827.4,3827.3,0.789]
[1761878357470,8.6196,3827.4,3827.3,0.5522]
[1761878357672,8.62181179,3827.4,3827.3,0.789]
[1761878358270,9.99481179,3827.4,3827.3,0.789]
[1761878358476,9.65221179,3827.4,3827.3,0.789]
[1761878358772,9.99481179,3827.4,3827.3,0.789]
[1761878359272,9.99481179,3827.4,3827.0,0.3273]
[1761878359461,0.7956,3827.1,3827.0,0.5522]
[1761878359666,0.7956,3827.1,3827.0,0.789]
[1761878359867,0.7956,3826.7,3826.6,0.789]
[1761878362576,0.7956,3826.6,3826.5,3.4327]
[1761878362768,9.5376,3826.9,3826.5,4.1293]
[1761878363070,9.648,3826.9,3826.8,0.789]
[1761878363476,9.9906,3826.9,3826.8,0.789]
[1761878363873,0.2223,3826.9,3826.8,0.789]
[1761878365076,0.2223,3826.9,3826.5,3.3403]
[1761878365077,0.3426,3826.1,3825.9,0.3273]
[1761878365380,0.7956,3826.0,3825.9,0.789]
[1761878365570,0.7956,3826.0,3825.9,41.589]
[1761878365773,0.453,3826.0,3825.9,41.589]
[1761878366372,0.7956,3826.0,3825.9,41.589]
[1761878367276,0.9328,3826.0,3825.9,41.0249]
[1761878367483,0.7956,3826.0,3825.9,0.789]
[1761878367781,0.2223,3826.0,3825.9,0.789]
[1761878367982,0.2223,3826.0,3825.9,41.589]
[1761878368585,0.5649,3826.0,3825.9,41.589]
[1761878368774,0.7956,3826.0,3825.9,41.589]
[1761878369677,0.9328,3826.0,3825.9,40.8]
[1761878370069,0.9328,3826.0,3825.9,41.1273]
[1761878370273,0.9328,3826.0,3825.9,0.2249]
[1761878370479,0.9328,3826.0,3825.9,0.5522]
[1761878371079,0.9328,3826.0,3825.9,0.2249]
[1761878371276,0.7956,3825.9,3825.8,40.80302029]
[1761878372389,0.7956,3825.9,3825.8,0.22792029]
[1761878373091,0.7956,3825.9,3825.8,0.00302029]
[1761878373382,1.37836713,3825.9,3825.8,0.00302029]
[1761878373782,0.7956,3825.9,3825.8,0.00302029]
[1761878374879,0.7956,3825.9,3825.8,0.22792029]
[1761878375080,0.7956,3825.9,3825.8,0.79202029]
[1761878375287,9.9926,3825.9,3825.8,0.46472029]
[1761878375486,9.9926,3825.9,3825.8,0.22792029]
[1761878375985,9.9916,3825.9,3825.8,0.55522029]
[1761878376487,9.9916,3825.9,3825.8,0.00302029]
[1761878378392,10.57489993,3825.9,3825.8,0.00302029]
[1761878378594,10.57489993,3825.9,3825.8,0.22792029]
[1761878379083,1.37889993,3825.9,3825.8,0.22792029]
[1761878379282,10.57189993,3825.9,3825.8,0.22792029]
[1761878380088,1.37889993,3825.9,3825.8,0.79202029]
[1761878380290,10.57089993,3825.9,3825.8,0.79202029]
[1761878380695,10.56889993,3825.9,3825.8,0.79202029]
[1761878381396,10.56889993,3825.9,3825.8,0.79432029]
[1761878381599,10.56889993,3825.9,3825.8,0.00302029]
[1761878381900,10.56889993,3825.9,3825.8,0.22742029]
[1761878382192,11.6719421,3825.9,3825.8,0.00302029]
[1761878384298,10.56889993,3825.9,3825.8,0.57962029]
[1761878384798,10.56689993,3825.9,3825.8,0.57962029]
[1761878385198,9.9826,3825.9,3825.8,0.79432029]
[1761878385495,9.4083,3825.9,3825.8,0.79432029]
[1761878386196,9.7614,3825.9,3825.8,0.79432029]
[1761878386798,9.4083,3825.9,3825.8,0.79432029]
[1761878387488,3.2078,3826.2,3826.1,0.7913]
[1761878387686,12.3928,3826.2,3826.1,0.7913]
[1761878387992,12.6214,3826.2,3826.1,0.7913]
[1761878388293,12.6214,3826.2,3826.1,41.5913]
[1761878388797,12.3928,3826.2,3826.1,41.5913]
[1761878389294,3.6601,3826.7,3826.5,0.1336]
[1761878389496,4.0132,3826.7,3826.6,0.7913]
[1761878389697,13.77797339,3826.7,3826.6,0.7913]
[1761878391295,13.77597339,3826.7,3826.6,0.7913]
[1761878391995,10.56717339,3826.7,3826.6,0.3522]
[1761878392294,0.2286,3826.3,3826.2,0.7913]
[1761878392503,0.5817,3826.3,3826.2,0.7913]
[1761878392688,0.8054,3826.3,3826.2,0.7913]
[1761878394196,0.4523,3826.3,3826.2,0.7913]
[1761878395100,9.9834,3826.4,3826.3,0.7913]
[1761878395997,9.9834,3826.4,3826.3,0.2244]
[1761878396296,0.8054,3826.1,3826.0,41.3727]
[1761878396896,0.8054,3826.1,3826.0,41.7249]
[1761878397994,9.9784,3826.1,3826.0,41.7249]
[1761878399701,9.6253,3826.1,3826.0,41.7249]
[1761878400005,9.6253,3826.1,3826.0,44.9327]
[1761878400205,3.4364,3826.9,3826.6,0.4391]
[1761878400404,3.6601,3826.9,3826.8,0.7913]
[1761878400605,13.41252808,3826.9,3826.8,0.7913]
[1761878400796,0.4523,3826.6,3826.5,0.4391]
[1761878400997,0.2286,3826.1,3826.0,40.9336]
[1761878401202,9.9744,3826.1,3826.0,40.8]
[1761878401399,9.9744,3826.1,3826.0,41.1522]
[1761878402005,9.9744,3826.1,3826.0,0.7913]
[1761878402205,0.8054,3825.9,3825.8,0.00302029]
[1761878402398,1.38872376,3825.9,3825.8,0.00302029]
[1761878405298,2.74286889,3825.9,3825.8,0.00302029]
[1761878406395,3.6728225,3825.9,3825.8,0.00302029]
[1761878406599,3.6728225,3825.9,3825.8,0.79432029]
[1761878406600,10.56672376,3825.9,3825.8,0.79432029]
[1761878406805,9.9834,3825.9,3825.8,0.79432029]
[1761878407008,0.8054,3825.9,3825.8,0.79432029]
[1761878407309,0.2286,3825.9,3825.8,0.79432029]
[1761878407905,4.006,3826.0,3825.9,0.7913]
[1761878408312,4.8114,3826.0,3825.9,0.7913]
[1761878409215,4.2346,3826.0,3825.9,0.7913]
[1761878409515,4.006,3826.0,3825.9,0.7913]
[1761878410309,3.2078,3826.1,3826.0,0.9249]
[1761878410703,3.2078,3826.6,3826.0,0.9249]
[1761878411005,1.38268408,3827.0,3826.8,0.8031]
[1761878411006,0.772,3826.9,3826.8,0.8031]
[1761878411207,7.55071906,3826.9,3826.8,0.8031]
[1761878411408,1.35571906,3826.9,3826.8,0.8031]
[1761878411600,3.4393,3827.0,3826.9,0.8031]
[1761878411799,3.9798,3827.0,3826.9,0.8031]
[1761878412004,4.1174,3827.0,3826.9,0.5714]
[1761878413509,4.1174,3827.0,3826.9,0.8031]
[1761878413712,0.2315,3826.6,3826.5,0.6048]
[1761878414215,0.5579,3826.6,3826.5,0.9411]
[1761878414716,3.3454,3827.0,3826.5,0.9411]
[1761878414717,0.2315,3826.9,3826.8,0.4668]
[1761878415016,0.5579,3826.9,3826.8,0.8031]
[1761878415405,0.2315,3826.9,3826.8,0.8031]
[1761878416615,3.2078,3827.0,3826.9,0.8042]
[1761878416803,3.4344,3827.0,3826.9,0.8042]
[1761878417322,0.00221179,3827.4,3827.3,0.8042]
[1761878417323,3.66541179,3827.4,3827.3,0.8042]
[1761878417615,13.42562227,3827.4,3827.3,0.8042]
[1761878417813,4.58422227,3827.4,3827.3,0.8042]
[1761878418018,13.76122227,3827.4,3827.3,0.8042]
[1761878418206,13.17801179,3827.4,3827.3,0.8042]
[1761878418518,0.00221179,3827.4,3827.3,1.27458]
[1761878418710,0.79321179,3827.4,3827.3,0.8042]
[1761878418907,0.79321179,3827.4,3827.3,0.4554]
[1761878419107,9.98721179,3827.4,3827.3,41.2554]
[1761878419411,9.98721179,3827.4,3827.3,41.6042]
[1761878421723,9.98721179,3827.4,3827.3,41.3743]
[1761878423522,0.2266,3826.8,3826.7,0.8042]
[1761878423729,0.791,3826.8,3826.7,0.8042]
[1761878424221,0.791,3826.8,3826.7,41.6042]
[1761878424721,0.2266,3826.8,3826.7,41.6042]
[1761878426212,3.66541179,3827.4,3827.3,0.8042]
[1761878426409,12.85041179,3827.4,3827.3,0.8042]
[1761878426822,13.18601179,3827.4,3827.3,0.8042]
[1761878427211,13.18601179,3827.4,3827.3,0.5743]
[1761878427411,0.2288,3827.1,3827.0,0.4554]
[1761878427722,0.4554,3826.8,3826.7,40.8]
[1761878428220,9.181,3827.0,3826.9,0.8042]
[1761878428517,3.42581179,3827.4,3827.3,0.2273]
[1761878428719,0.4341,3827.1,3827.0,0.5696]
[1761878429220,9.959,3827.1,3827.0,0.5696]
[1761878430319,9.959,3827.1,3827.0,0.8061]
[1761878431917,0.4341,3826.8,3826.7,40.8]
[1761878432117,0.782,3826.8,3826.7,40.8]
[1761878432313,0.4341,3826.8,3826.7,40.8]
[1761878432621,0.4341,3826.8,3826.7,41.1423]
[1761878432819,0.782,3826.8,3826.7,41.1423]
[1761878433124,0.00221179,3827.4,3827.3,0.8061]
[1761878433427,9.38901179,3827.4,3827.3,0.8061]
[1761878433626,9.73691179,3827.4,3827.3,0.8061]
[1761878433819,9.95521179,3827.4,3827.3,0.8061]
[1761878435729,0.5637,3826.8,3826.7,44.0078]
[1761878435928,0.2158,3826.8,3826.7,44.0078]
[1761878436130,0.2158,3826.8,3826.7,44.3501]
[1761878437226,0.5637,3826.8,3826.7,44.3501]
[1761878437732,0.782,3826.8,3826.7,44.3501]
[1761878438325,0.4341,3826.8,3826.7,44.3501]
[1761878438526,0.782,3826.8,3826.7,44.3501]
[1761878438728,0.782,3826.8,3826.4,0.3423]
[1761878438933,12.5251,3827.0,3826.0,0.5974]
[1761878438934,0.5637,3826.1,3826.0,0.5974]
[1761878439133,0.2158,3825.9,3825.7,3.2078]
[1761878439329,0.782,3825.9,3825.7,40.8]
[1761878440022,0.782,3825.9,3825.8,0.23032029]
[1761878440223,0.782,3825.9,3825.8,0.80912029]
[1761878441232,0.782,3825.9,3825.8,0.80842029]
[1761878441622,0.782,3825.9,3825.8,0.23032029]
[1761878441933,0.782,3825.9,3825.8,0.80522029]
[1761878442124,1.37184796,3825.9,3825.8,0.80522029]
[1761878442428,0.782,3825.9,3825.8,0.23032029]
[1761878442730,0.782,3825.9,3825.8,0.58062029]
[1761878443231,0.782,3825.9,3825.8,0.81392029]
[1761878443431,0.782,3825.9,3825.8,0.58062029]
[1761878443930,0.782,3825.9,3825.8,0.81392029]
[1761878445428,0.782,3825.9,3825.8,0.00302029]
[1761878445936,0.782,3825.9,3825.8,0.23902029]
[1761878446433,0.782,3825.9,3825.8,0.81392029]
[1761878446627,0.782,3825.9,3825.8,0.00302029]
[1761878447426,9.962,3825.9,3825.8,0.00302029]
[1761878450126,10.5504212,3825.9,3825.8,0.00302029]
[1761878453030,0.4505,3825.1,3825.0,40.8]
[1761878453239,9.9593,3825.1,3825.0,41.1416]
[1761878453530,3.2078,3825.2,3825.1,0.236]
[1761878453835,12.3828,3825.2,3825.1,2.16365546]
[1761878454037,3.2078,3825.2,3825.1,2.1658438]
[1761878454242,12.3818,3825.2,3825.1,0.81308834]
[1761878454427,12.6182,3825.2,3825.1,0.81308834]
[1761878455238,13.1641,3825.2,3825.1,0.00218834]
[1761878455733,0.7823,3824.8,3824.7,0.02614618]
[1761878455941,13.1671,3824.8,3824.7,0.02614618]
[1761878456624,13.1671,3824.8,3824.7,0.02833074]
[1761878457839,0.7823,3824.1,3824.0,0.236]
[1761878458040,9.9593,3824.1,3824.0,0.236]
[1761878458443,0.7823,3823.7,3823.6,0.8109]
[1761878458737,9.9623,3823.7,3823.6,0.8109]
[1761878459035,13.17253072,3823.7,3823.6,0.23861091]
[1761878459424,13.17253072,3823.7,3823.6,0.81351091]
[1761878459425,3.99253072,3823.7,3823.6,0.81351091]
[1761878459737,0.00243072,3823.7,3823.6,0.81351091]
[1761878460638,0.23883072,3823.7,3823.6,0.81351091]
[1761878460938,0.78473072,3823.7,3823.6,0.81351091]
[1761878461436,0.00243072,3823.7,3823.6,0.81351091]
[1761878463442,3.9901,3824.6,3824.5,0.8109]
[1761878463642,13.1721,3824.6,3824.5,0.9513]
[1761878463937,13.1721,3824.6,3824.5,41.7513]
[1761878464330,13.17405514,3824.6,3824.5,41.7513]
[1761878464530,13.17405514,3824.6,3824.5,41.6109]
[1761878465539,13.17405514,3824.6,3824.5,41.7513]
[1761878465735,12.62815514,3824.6,3824.5,41.7513]
[1761878465942,3.44615514,3824.6,3824.5,41.7513]
[1761878466138,3.20975514,3824.6,3824.5,41.7513]
[1761878466941,3.44615514,3824.6,3824.5,41.7513]
[1761878467246,0.7823,3824.2,3824.1,0.8109]
[1761878467838,0.7823,3824.2,3824.1,41.6109]
[1761878468336,0.4505,3824.2,3824.1,41.6109]
[1761878468749,0.7823,3824.2,3824.1,41.1416]
[1761878469238,13.1731,3824.2,3824.1,40.8]
[1761878469436,0.7823,3823.9,3823.8,0.236]
[1761878469646,0.7823,3823.7,3823.6,0.58021091]
[1761878469845,3.9901,3823.7,3823.6,0.58021091]
[1761878470049,3.9901,3823.7,3823.6,41.38021091]
[1761878470342,3.9901,3823.7,3823.6,0.58021091]
[1761878470545,3.9901,3823.7,3823.6,0.81351091]
[1761878470850,3.9901,3823.7,3823.6,41.61351091]
[1761878471247,3.6583,3823.7,3823.6,41.61351091]
[1761878471838,3.2078,3824.1,3823.9,0.2287]
[1761878472044,3.2078,3824.1,3824.0,0.9195]
[1761878472243,3.9928,3824.1,3824.0,0.9195]
[1761878472644,3.9928,3824.1,3824.0,0.7881]
[1761878473347,0.4369,3823.7,3823.6,40.80261091]
[1761878473552,3.9928,3823.7,3823.6,41.13851091]
[1761878476055,3.9928,3823.7,3823.6,40.80261091]
[1761878476246,3.9928,3823.7,3823.6,0.23131091]
[1761878476952,3.9928,3823.7,3823.6,0.80641091]
[1761878477445,3.9928,3823.7,3823.6,0.00261091]
[1761878478849,3.9928,3823.7,3823.6,0.58061091]
[1761878479054,3.9928,3823.7,3823.6,0.81291091]
[1761878480349,3.9928,3823.7,3823.6,0.47011091]
[1761878480857,3.9928,3823.7,3823.6,0.81291091]
[1761878484060,3.7784,3823.7,3823.6,0.81291091]
[1761878484261,4.0114,3823.7,3823.6,0.81291091]
[1761878484460,13.1834,3823.7,3823.6,0.81291091]
[1761878485158,13.1834,3823.7,3823.6,0.00261091]
[1761878485359,13.1834,3823.7,3823.6,0.58061091]
[1761878485659,13.1834,3823.7,3823.6,0.00261091]
[1761878486161,13.1834,3823.7,3823.6,1.34192649]
[1761878486363,13.1834,3823.7,3823.6,0.58061091]
[1761878487064,9.9756,3823.7,3823.6,0.81291091]
[1761878487361,9.9756,3823.7,3823.6,0.00261091]
[1761878487561,9.9756,3823.7,3823.6,0.58061091]
[1761878488153,9.9756,3823.7,3823.6,0.81291091]
[1761878491957,9.9756,3823.7,3823.6,0.23781091]
[1761878492765,9.9756,3823.7,3823.6,0.00261091]
[1761878495755,13.1834,3823.7,3823.6,0.00261091]
[1761878495960,13.77377395,3823.7,3823.6,0.00261091]
[1761878497760,0.7871,3822.7,3822.6,41.1428]
[1761878497964,9.9421,3822.7,3822.6,42.24691558]
[1761878498556,9.7091,3822.7,3822.6,42.24691558]
[1761878498757,9.7091,3822.7,3822.6,42.24921827]
[1761878499067,9.3827,3822.7,3822.6,42.24921827]
[1761878499265,9.9421,3822.7,3822.6,40.80230269]
[1761878500265,0.3264,3822.4,3822.0,0.2352]
[1761878500455,0.2277,3822.2,3822.1,0.8103]
[1761878500660,0.5541,3822.2,3822.1,0.8103]
[1761878500856,0.7871,3822.2,3822.1,0.8103]
[1761878501058,0.7871,3822.2,3821.5,3.339]
[1761878501255,0.7954,3822.1,3822.0,0.7989]
[1761878501460,0.7954,3822.1,3822.0,1.90301558]
[1761878501663,0.7954,3822.1,3822.0,42.70301558]
[1761878502172,9.9824,3822.1,3822.0,42.70301558]
[1761878502869,9.9824,3822.1,3822.0,41.5989]
[1761878503669,9.9824,3822.1,3822.0,42.70301558]
[1761878505769,13.1902,3822.1,3822.0,41.2538]
[1761878506167,13.1902,3822.1,3822.0,41.0275]
[1761878506464,13.1902,3822.1,3822.0,41.3726]
[1761878506656,9.9824,3822.1,3822.0,41.5078]
[1761878508672,0.7954,3822.4,3822.3,0.7989]
[1761878508877,0.7954,3822.4,3822.3,1.90301558]
[1761878508878,9.6167,3822.4,3822.3,1.90301558]
[1761878509167,0.7954,3822.7,3822.6,0.7989]
[1761878509675,9.9724,3822.7,3822.6,0.7989]
[1761878509870,9.9724,3822.7,3822.6,1.90301558]
[1761878510170,9.9714,3822.7,3822.6,1.90301558]
[1761878511066,9.9714,3822.7,3822.6,0.7989]
[1761878512573,0.2159,3822.7,3822.6,0.7989]
[1761878512872,3.6485,3822.9,3822.8,0.7989]
[1761878513073,12.8195,3822.9,3822.8,0.7989]
[1761878513269,13.1742,3822.9,3822.8,0.7989]
[1761878513572,13.1752,3822.9,3822.8,1.90301558]
[1761878513774,12.8205,3822.9,3822.8,1.90301558]
[1761878514171,13.1752,3822.9,3822.8,1.90301558]
[1761878516381,13.1752,3822.9,3822.8,0.2275]
[1761878516670,13.1752,3822.9,3822.8,0.5726]
[1761878516875,0.7954,3822.6,3822.5,0.2275]
[1761878517078,9.9614,3822.6,3822.5,0.2275]
[1761878517263,9.9614,3822.6,3822.2,0.5726]
[1761878517264,0.7954,3822.3,3822.2,0.5726]
[1761878517672,0.7954,3822.3,3822.2,0.7989]
[1761878518188,9.9624,3822.3,3822.2,0.7989]
[1761878520983,0.7954,3823.2,3823.1,0.7989]
[1761878522271,0.4407,3823.2,3823.1,2.15477717]
[1761878522471,0.7954,3823.2,3823.1,42.95477717]
[1761878522987,9.9654,3823.2,3823.1,41.5989]
[1761878523183,9.9654,3823.2,3823.1,40.8]
[1761878523383,0.2159,3823.0,3822.9,0.7989]
[1761878523678,0.2159,3823.0,3822.9,2.15477717]
[1761878523879,0.2159,3823.0,3822.9,41.5989]
[1761878523880,0.9322,3823.0,3822.9,41.5989]
[1761878524783,0.7954,3823.0,3822.9,41.5989]
[1761878524978,0.2159,3823.0,3822.9,41.5989]
[1761878526086,0.5706,3823.0,3822.9,41.5989]
[1761878526487,0.9322,3823.0,3822.9,41.5989]
[1761878526994,0.7954,3822.7,3822.6,0.3451]
[1761878527182,0.2159,3822.3,3822.2,0.7989]
[1761878527575,0.2159,3822.3,3822.2,41.5989]
[1761878527985,0.3547,3823.0,3822.9,0.2275]
[1761878528293,8.4064873,3823.0,3822.9,0.7989]
[1761878528493,7.8174,3823.0,3822.9,0.7989]
[1761878529597,9.9654,3823.0,3822.9,0.7989]
[1761878530582,9.9644,3823.0,3822.9,0.7989]
[1761878531987,9.6097,3823.0,3822.9,0.7989]
[1761878532190,9.9322,3823.0,3822.9,0.7989]
[1761878532893,9.6097,3823.0,3822.9,0.7989]
[1761878533393,9.3991,3823.0,3822.9,0.7989]
[1761878533693,9.9351,3823.0,3822.9,0.7989]
[1761878534086,0.7661,3823.0,3822.9,0.7989]
[1761878534394,0.7661,3822.6,3822.5,3.5582]
[1761878534596,0.7661,3822.6,3822.5,3.7837]
[1761878534893,0.7661,3822.6,3822.5,4.1351]
[1761878535094,9.9321,3822.6,3822.5,3.9999]
[1761878535691,9.9321,3822.6,3822.5,3.423]
[1761878536394,9.392,3822.6,3822.5,4.1078]
[1761878536698,9.7326,3822.6,3822.5,4.1078]
[1761878537098,9.7326,3822.6,3822.5,0.9]
[1761878537299,9.9476,3822.6,3822.5,0.2152]
[1761878537495,9.9476,3822.6,3822.5,0.7619]
[1761878540993,9.9476,3822.6,3822.5,0.8958]
[1761878541191,9.392,3822.6,3822.5,0.8958]
[1761878541498,0.7816,3822.6,3822.5,0.8958]
[1761878541700,9.9426,3822.6,3822.5,0.8958]
[1761878541896,9.9426,3822.6,3822.5,0.7619]
[1761878543393,9.9416,3822.9,3822.8,0.7619]
[1761878543593,10.53119585,3822.9,3822.8,0.7619]
[1761878544993,0.7816,3822.6,3822.5,0.7619]
[1761878545395,0.7816,3822.6,3822.5,0.8958]
[1761878548609,0.7816,3822.6,3822.5,0.7619]
[1761878549307,3.9894,3822.6,3822.5,0.7619]
[1761878549604,0.7816,3822.3,3822.2,40.8]
[1761878550096,9.9386,3822.3,3822.2,40.8]
[1761878550299,9.9386,3822.3,3822.2,0.7619]
[1761878550699,9.9386,3822.3,3822.2,41.5619]
[1761878552203,3.6488,3822.6,3822.5,0.2176]
[1761878552510,13.39572458,3822.6,3822.5,0.543]
[1761878552901,13.73632458,3822.6,3822.5,0.543]
[1761878553300,1.39077612,3823.3,3822.5,0.543]
[1761878553301,3.2078,3823.9,3823.8,0.47081]
[1761878553503,0.1287,3824.0,3823.7,9.212]
[1761878553704,0.1287,3824.0,3823.4,3.2078]
[1761878553705,0.441,3823.6,3823.4,3.2078]
[1761878554003,0.5697,3823.5,3823.4,3.2078]
[1761878554210,0.5697,3823.5,3823.4,44.0078]
[1761878555609,0.9103,3823.5,3823.4,44.0078]
[1761878557412,0.4693,3823.5,3823.4,44.0078]
[1761878557598,0.9103,3823.5,3823.4,45.36367717]
[1761878558005,0.3406,3823.5,3823.4,45.83453717]
[1761878558201,0.3547,3824.0,3823.4,55.94055434]
[1761878558411,0.3547,3824.0,3823.9,4.56367717]
[1761878559117,0.5697,3824.0,3823.9,4.56367717]
[1761878559411,0.3547,3824.0,3823.9,4.56367717]
[1761878560114,0.9103,3824.0,3823.9,4.56367717]
[1761878560523,0.9103,3824.0,3823.9,3.2078]
[1761878563222,0.89,3823.3,3823.2,3.2078]
[1761878563411,10.115,3823.3,3823.2,4.56367717]
[1761878565509,10.115,3823.3,3823.2,3.2078]
[1761878565910,0.89,3822.9,3822.8,4.56367717]
[1761878566312,0.89,3822.9,3822.8,3.2078]
[1761878566621,1.45991098,3822.9,3822.8,3.2078]
[1761878567919,1.45991098,3822.9,3822.8,4.56367717]
[1761878568107,10.112,3822.9,3822.8,4.56367717]
[1761878568309,0.89,3822.9,3822.8,4.56367717]
[1761878568623,6.232,3822.9,3822.8,4.60887717]
[1761878568925,0.89,3822.9,3822.8,4.58627717]
[1761878569221,0.3949,3822.9,3822.8,4.60887717]
[1761878569619,0.6167,3822.9,3822.8,4.60887717]
[1761878570428,0.89,3822.9,3822.8,4.56367717]
[1761878570625,0.89,3822.6,3822.5,40.8]
[1761878571014,1.0296,3822.5,3822.4,3.2078]
[1761878571216,10.2616,3822.5,3822.4,3.2078]
[1761878571916,10.60945372,3822.5,3822.0,44.0078]
[1761878572225,0.89,3822.1,3822.0,3.2078]
[1761878572720,0.89,3822.1,3821.5,0.00239404]
[1761878572920,1.35587717,3822.3,3821.5,0.00239404]
[1761878572921,0.89,3821.7,3821.6,3.2078]
[1761878573121,0.89275532,3821.7,3821.6,3.2078]
[1761878576325,5.85675532,3821.7,3821.6,3.2078]
[1761878579827,10.11775532,3821.7,3821.6,3.2078]
[1761878580022,0.89275532,3821.7,3821.6,3.2078]
[1761878580325,10.11375532,3821.7,3821.6,3.2078]
[1761878581615,0.22455532,3821.7,3821.6,4.0997]
[1761878581928,9.44555532,3821.7,3821.6,4.0997]
[1761878582127,9.44555532,3821.7,3821.6,3.2078]
[1761878582128,0.89275532,3821.7,3821.6,3.2078]
[1761878582313,5.68675532,3821.7,3821.6,3.2078]
[1761878583127,0.89,3821.6,3821.5,0.00239404]
[1761878583326,0.89,3820.9,3820.8,3.2078]
[1761878583526,10.119,3820.9,3820.8,3.2078]